bitfinex-derivatives/quotes_SOLF0:USTF0_20260105
["timestamp","ask_amount","ask_price","bid_price","bid_amount"]
[1767650052312,0.30917091,138.51,138.41,104.07775091]
[1767650052512,0.30917091,138.51,138.41,189.41775091]
[1767650053808,0.30917091,138.51,138.45,6.5007]
[1767650054009,0.30917091,138.53,138.44,101.1294]
[1767650054214,0.30917091,138.53,138.45,2.92575091]
[1767650055710,0.30917091,138.53,138.48,6.4993]
[1767650057119,0.30917091,138.55,138.48,6.4993]
[1767650057420,0.30917091,138.54,138.48,6.4993]
[1767650059221,0.30917091,138.54,138.46,101.1138]
[1767650059810,88.57492182,138.59,138.46,186.4338]
[1767650060016,0.30917091,138.58,138.47,2.92575091]
[1767650061121,0.30917091,138.58,138.5,6.4977]
[1767650069026,0.30917091,138.58,138.51,6.4971]
[1767650071133,85.34,138.59,138.51,6.4971]
[1767650071838,85.67158422,138.59,138.51,6.4971]
[1767650072633,85.67158422,138.59,138.52,6.4966]
[1767650072840,92.16518422,138.59,138.52,6.4966]
[1767650073837,0.33158422,138.58,138.48,104.01515091]
[1767650075548,0.33158422,138.58,138.51,6.4973]
[1767650077244,0.33158422,138.58,138.52,6.4969]
[1767650077652,85.34,138.59,138.52,6.4969]
[1767650078052,85.67158422,138.59,138.52,6.4969]
[1767650078552,92.16528422,138.59,138.52,6.4969]
[1767650079847,0.33158422,138.58,138.51,6.4973]
[1767650080349,0.33158422,138.57,138.51,6.4973]
[1767650080552,2.20003773,138.56,138.49,6.4979]
[1767650081140,2.20003773,138.56,138.5,6.4978]
[1767650082444,87.20845351,138.59,138.49,102.95005351]
[1767650082940,85.34,138.59,138.51,1.86845351]
[1767650084148,85.34,138.59,138.53,6.4964]
[1767650086355,1.86845351,138.6,138.54,6.4959]
[1767650086752,85.61158422,138.62,138.55,6.4953]
[1767650086957,85.61158422,138.62,138.55,1.86845351]
[1767650087159,87.48003773,138.62,138.53,1.86845351]
[1767650087756,0.33158422,138.61,138.53,1.86845351]
[1767650088556,0.33158422,138.61,138.55,6.4951]
[1767650090360,1.86845351,138.6,138.55,6.4951]
[1767650092858,1.86845351,138.6,138.54,6.4959]
[1767650097370,2.19735119,138.58,138.52,6.4965]
[1767650098771,2.19735119,138.58,138.49,85.26]
[1767650098772,1.86845351,138.56,138.49,85.26]
[1767650099261,1.86845351,138.56,138.51,6.4973]
[1767650100965,1.86845351,138.57,138.52,6.4967]
[1767650104573,1.86845351,138.57,138.53,6.4963]
[1767650106076,1.86845351,138.57,138.49,188.21025351]
[1767650107573,1.86845351,138.57,138.52,6.4968]
[1767650108881,0.32172905,138.56,138.5,6.4975]
[1767650109179,1.86845351,138.55,138.5,6.4975]
[1767650109589,1.86845351,138.55,138.46,102.97255351]
[1767650109590,2.19018256,138.55,138.48,6.4983]
[1767650109977,2.19018256,138.55,138.47,85.26]
[1767650111587,2.19018256,138.55,138.49,6.4983]
[1767650111780,1.86845351,138.55,138.47,85.26]
[1767650111979,2.19018256,138.57,138.49,101.0837]
[1767650112180,1.86845351,138.57,138.49,101.0837]
[1767650113687,2.19018256,138.59,138.49,101.0837]
[1767650113888,1.86845351,138.59,138.5,1.86845351]
[1767650114187,1.86845351,138.59,138.53,6.4964]
[1767650116393,2.19018256,138.59,138.53,6.4964]
[1767650117780,0.32172905,138.58,138.53,6.4964]
[1767650117986,2.19018256,138.57,138.52,6.4969]
[1767650120394,2.19018256,138.57,138.5,6.4977]
[1767650122689,0.32172905,138.56,138.48,6.4983]
[1767650122890,0.32172905,138.56,138.48,91.7583]
[1767650123593,6.81672905,138.56,138.48,91.7583]
[1767650125292,2.19018256,138.56,138.48,91.7583]
[1767650125497,2.19018256,138.54,138.46,6.4992]
[1767650125692,0.32172905,138.53,138.45,104.35511309]
[1767650125895,1.86845351,138.52,138.45,110.85521309]
[1767650126102,1.86845351,138.52,138.45,91.7601]
[1767650126587,2.19018256,138.52,138.45,91.7601]
[1767650126788,2.19018256,138.52,138.44,6.5006]
[1767650126995,1.86845351,138.5,138.41,85.26]
[1767650127696,1.86845351,138.48,138.41,91.7617]
[1767650128297,1.86845351,138.48,138.42,6.5015]
[1767650129399,1.86845351,138.48,138.43,6.501]
[1767650130997,1.86845351,138.49,138.43,6.501]
[1767650132701,1.86845351,138.47,138.41,6.5017]
[1767650133302,2.20032154,138.47,138.41,6.5017]
[1767650135395,2.20032154,138.47,138.39,6.5026]
[1767650136406,0.33186803,138.47,138.39,6.5026]
[1767650136709,2.20032154,138.47,138.39,6.5026]
[1767650138413,2.20032154,138.47,138.4,6.5025]
[1767650139815,2.20032154,138.45,138.39,6.5029]
[1767650140510,0.33186803,138.45,138.39,6.5029]
[1767650142609,0.33186803,138.45,138.37,6.5035]
[1767650142908,0.33186803,138.43,138.34,85.3]
[1767650143114,0.33186803,138.43,138.32,1.25779344]
[1767650143307,0.33186803,138.43,138.32,86.57779344]
[1767650144516,0.33186803,138.42,138.35,6.5048]
[1767650151923,0.33186803,138.41,138.33,6.5054]
[1767650152914,0.33186803,138.4,138.31,6.5063]
[1767650153227,0.33186803,138.39,138.31,6.5063]
[1767650153523,0.33186803,138.39,138.29,86.5979071]
[1767650154121,0.33186803,138.38,138.3,6.5068]
[1767650154326,0.33186803,138.38,138.27,101.2427]
[1767650154528,0.33186803,138.38,138.27,102.50076627]
[1767650155225,0.32552642,138.37,138.29,6.5072]
[1767650158337,6.82952642,138.37,138.29,6.5072]
[1767650158630,6.82952642,138.37,138.27,7.76636627]
[1767650158631,0.32552642,138.37,138.27,7.76636627]
[1767650158828,0.32552642,138.37,138.27,1.25806627]
[1767650159231,0.32552642,138.35,138.26,6.5088]
[1767650160228,0.31749455,138.33,138.24,1.25838471]
[1767650161729,0.31749455,138.33,138.26,6.5091]
[1767650162132,0.33268999,138.35,138.27,6.5086]
[1767650162430,0.33268999,138.35,138.24,1.25838471]
[1767650162934,6.83798999,138.34,138.26,6.5091]
[1767650164929,0.33268999,138.34,138.28,6.5081]
[1767650167737,9.76095956,138.36,138.29,6.5077]
[1767650168039,0.33268999,138.36,138.26,101.25]
[1767650168336,0.33268999,138.36,138.3,6.5071]
[1767650168539,6.504,138.37,138.27,101.2458]
[1767650168935,6.504,138.37,138.3,6.5072]
[1767650169140,6.504,138.37,138.27,101.2458]
[1767650169438,6.504,138.37,138.3,6.5072]
[1767650170428,6.83668999,138.37,138.3,6.5072]
[1767650170633,6.83708999,138.36,138.3,6.5072]
[1767650172240,6.83708999,138.36,138.27,6.5082]
[1767650172644,0.33268999,138.36,138.27,2.92386957]
[1767650173643,0.33268999,138.36,138.28,6.5081]
[1767650174841,6.5039,138.37,138.28,6.5081]
[1767650175748,6.5045,138.36,138.28,6.5081]
[1767650176345,6.5045,138.36,138.29,6.5076]
[1767650177343,0.33268999,138.38,138.3,6.5071]
[1767650179944,0.33268999,138.38,138.28,9.43156957]
[1767650180144,0.33268999,138.38,138.28,2.92386957]
[1767650181550,6.83618999,138.38,138.3,6.5072]
[1767650183241,6.83618999,138.38,138.31,6.5067]
[1767650183449,0.33268999,138.38,138.31,6.5067]
[1767650184545,92.19568999,138.39,138.31,6.5067]
[1767650184745,85.69268999,138.39,138.29,101.2289]
[1767650184946,0.33268999,138.39,138.3,2.92386957]
[1767650185341,0.33268999,138.37,138.28,85.4]
[1767650185540,3.25655956,138.41,138.29,101.231]
[1767650185740,0.33268999,138.4,138.32,6.5058]
[1767650185940,0.33268999,138.4,138.3,104.14616957]
[1767650186148,0.33268999,138.4,138.3,2.92386957]
[1767650187043,0.33268999,138.4,138.3,88.30386957]
[1767650187547,6.83528999,138.4,138.33,6.5058]
[1767650189038,0.33268999,138.4,138.33,6.5058]
[1767650189243,0.33268999,138.42,138.35,6.5048]
[1767650189642,0.33268999,138.42,138.32,2.92386957]
[1767650189850,0.33268999,138.42,138.34,6.5053]
[1767650191551,6.83428999,138.42,138.34,6.5053]
[1767650191850,6.83428999,138.42,138.35,6.5048]
[1767650192248,0.33268999,138.42,138.32,101.205]
[1767650193750,0.33268999,138.42,138.36,6.5042]
[1767650195648,0.33268999,138.42,138.37,6.5042]
[1767650196542,38.8345336,138.45,138.37,6.5042]
[1767650196853,0.33046445,138.44,138.37,6.5042]
[1767650200753,0.33046445,138.44,138.38,6.504]
[1767650200954,0.33046445,138.44,138.35,101.1965]
[1767650201553,9.42496957,138.45,138.34,186.5612]
[1767650201554,2.92386957,138.45,138.37,101.1822]
[1767650201752,0.33046445,138.46,138.38,101.1753]
[1767650202554,2.20155827,138.46,138.41,6.5022]
[1767650203953,2.20155827,138.46,138.42,6.5022]
[1767650204257,52.38226698,138.53,138.39,188.39539382]
[1767650204258,2.20155827,138.48,138.39,188.39539382]
[1767650204655,2.20155827,138.48,138.39,186.5243]
[1767650205156,1.87109382,138.47,138.42,6.5018]
[1767650207655,0.33046445,138.48,138.43,6.5017]
[1767650207656,1.87109382,138.48,138.43,6.5017]
[1767650207857,1.87109382,138.49,138.43,6.5017]
[1767650208057,1.87109382,138.5,138.4,103.02899382]
[1767650208463,8.36959382,138.5,138.43,6.5018]
[1767650208772,1.87109382,138.48,138.43,6.5018]
[1767650209368,1.87109382,138.48,138.41,6.5024]
[1767650210567,1.87109382,138.48,138.42,91.8421]
[1767650211065,2.20155827,138.5,138.42,91.8421]
[1767650212159,2.20155827,138.5,138.42,6.5021]
[1767650212465,8.70015827,138.5,138.42,91.8421]
[1767650215163,2.20155827,138.5,138.42,91.8421]
[1767650215364,37.35991411,138.53,138.42,85.34]
[1767650215365,0.30833406,138.52,138.42,85.34]
[1767650215568,1.87109382,138.51,138.42,85.34]
[1767650215966,1.87109382,138.51,138.43,85.34]
[1767650216472,1.87109382,138.51,138.43,87.21109382]
[1767650216769,1.87109382,138.51,138.44,6.5013]
[1767650217271,1.87109382,138.51,138.45,6.5005]
[1767650217471,0.30833406,138.52,138.45,6.5005]
[1767650217674,0.30833406,138.52,138.43,87.21109382]
[1767650218373,0.30833406,138.52,138.46,6.5003]
[1767650220275,1.87109382,138.53,138.45,1.87109382]
[1767650221671,1.87109382,138.53,138.48,6.4994]
[1767650222580,2.20928248,138.56,138.47,102.98009382]
[1767650223372,2.20928248,138.56,138.51,6.4979]
[1767650224377,0.33818866,138.56,138.52,6.4975]
[1767650232390,0.33818866,138.56,138.5,6.498]
[1767650234289,1.87109382,138.57,138.5,6.498]
[1767650235393,2.20928248,138.57,138.5,6.498]
[1767650236793,8.70448248,138.57,138.48,6.499]
[1767650236995,8.70448248,138.57,138.47,1.87109382]
[1767650238492,1.87109382,138.58,138.49,1.87109382]
[1767650239088,1.87109382,138.58,138.51,6.4979]
[1767650239793,2.20928248,138.58,138.51,6.4979]
[1767650239988,0.33818866,138.57,138.49,6.4985]
[1767650240193,2.20928248,138.56,138.49,6.4985]
[1767650240894,0.33818866,138.53,138.46,85.28]
[1767650241599,0.33818866,138.53,138.46,91.7802]
[1767650242395,0.33818866,138.53,138.47,6.4998]
[1767650245305,0.33818866,138.53,138.46,85.28]
[1767650245306,0.33818866,138.53,138.48,6.4993]
[1767650246800,0.33818866,138.56,138.47,101.1076]
[1767650246996,1.87109382,138.55,138.47,101.1076]
[1767650248700,1.87109382,138.55,138.51,6.498]
[1767650252703,1.87109382,138.53,138.49,6.4985]
[1767650255203,1.87109382,138.53,138.46,85.28]
[1767650255406,1.87109382,138.53,138.47,6.4998]
[1767650257907,1.87109382,138.53,138.46,85.28]
[1767650258411,6.4966,138.54,138.46,87.15109382]
[1767650258603,6.4966,138.54,138.46,93.65139382]
[1767650258811,0.31514633,138.52,138.46,6.5003]
[1767650259207,1.87109382,138.53,138.46,6.5003]
[1767650259507,1.87109382,138.53,138.47,6.4999]
[1767650262407,1.87109382,138.51,138.42,1.87109382]
[1767650262610,0.31514633,138.52,138.44,85.28]
[1767650263712,0.31514633,138.52,138.45,6.5008]
[1767650264216,0.31514633,138.52,138.46,6.5003]
[1767650265312,3.23654591,138.55,138.44,186.4083]
[1767650265507,0.31514633,138.54,138.44,186.4083]
[1767650266718,2.92139958,138.53,138.43,101.1356]
[1767650266903,0.31514633,138.52,138.43,85.28]
[1767650269618,0.31514633,138.52,138.46,6.5003]
[1767650270119,0.31514633,138.52,138.44,6.5008]
[1767650270618,0.31514633,138.52,138.45,6.5006]
[1767650273315,6.4977,138.52,138.45,6.5006]
[1767650273521,0.31514633,138.51,138.45,6.5006]
[1767650274315,0.32287553,138.5,138.39,101.1639]
[1767650274512,0.32287553,138.48,138.4,85.3]
[1767650275220,6.82227553,138.48,138.38,104.09599958]
[1767650275422,0.32287553,138.47,138.39,85.3]
[1767650275921,0.32287553,138.47,138.4,6.5027]
[1767650276223,0.32287553,138.47,138.39,85.3]
[1767650277518,0.32287553,138.47,138.41,6.5025]
[1767650280921,6.82177553,138.5,138.4,88.22139958]
[1767650282033,0.32287553,138.5,138.43,6.5017]
[1767650283223,0.32287553,138.5,138.4,88.22139958]
[1767650283430,0.32287553,138.5,138.44,6.5011]
[1767650285332,0.32287553,138.5,138.45,6.5007]
[1767650287326,9.41849958,138.53,138.45,6.5007]
[1767650287533,0.3386413,138.52,138.45,6.5007]
[1767650288035,0.3386413,138.52,138.46,6.5003]
[1767650292040,0.3386413,138.52,138.44,6.5009]
[1767650293335,6.8362413,138.52,138.44,6.5009]
[1767650297042,6.8349413,138.54,138.44,2.92139958]
[1767650298348,6.8349413,138.54,138.47,6.4997]
[1767650298846,0.3386413,138.52,138.44,88.22139958]
[1767650299447,0.3386413,138.52,138.44,85.3]
[1767650299636,0.3386413,138.52,138.45,6.5005]
[1767650300844,0.3386413,138.51,138.43,6.5013]
[1767650301350,0.3386413,138.51,138.42,88.22139958]
[1767650301546,0.3386413,138.51,138.42,85.3]
[1767650302549,6.8367413,138.51,138.44,6.5013]
[1767650303247,0.3386413,138.51,138.45,6.5008]
[1767650304546,0.3386413,138.51,138.43,6.5013]
[1767650304948,0.3386413,138.5,138.43,6.5013]
[1767650305448,0.3386413,138.5,138.44,6.5011]
[1767650306450,0.3386413,138.5,138.45,6.5006]
[1767650308750,0.3386413,138.5,138.41,186.4492]
[1767650308751,0.3386413,138.5,138.46,6.5003]
[1767650310254,0.3386413,138.5,138.45,6.5008]
[1767650313258,0.3386413,138.5,138.44,6.5013]
[1767650318066,0.3386413,138.5,138.45,6.5008]
[1767650318266,6.498,138.51,138.45,6.5008]
[1767650322071,6.83756295,138.51,138.45,6.5008]
[1767650323071,6.83756295,138.51,138.44,6.5012]
[1767650324369,6.83806295,138.5,138.4,101.157]
[1767650324570,2.20996622,138.49,138.4,87.17040327]
[1767650325675,8.70896622,138.49,138.42,6.5018]
[1767650326475,8.70896622,138.49,138.43,6.5015]
[1767650329376,2.20996622,138.49,138.43,6.5015]
[1767650330672,0.33956295,138.48,138.39,101.1652]
[1767650330879,0.33956295,138.48,138.4,103.03130327]
[1767650331068,2.20996622,138.5,138.4,103.03130327]
[1767650332571,8.70866622,138.5,138.43,6.5017]
[1767650333673,0.32003568,138.49,138.43,6.5017]
[1767650333871,0.32003568,138.49,138.42,6.5022]
[1767650334478,0.32003568,138.47,138.4,6.5028]
[1767650335277,0.32003568,138.47,138.41,6.5027]
[1767650337375,2.19043895,138.49,138.4,1.87040327]
[1767650337577,0.32003568,138.49,138.4,103.02810327]
[1767650339379,92.13803568,138.51,138.44,6.5013]
[1767650339577,94.00843895,138.51,138.44,6.5013]
[1767650342383,0.31824863,138.5,138.44,6.5013]
[1767650344182,0.31824863,138.48,138.42,6.502]
[1767650346282,1.87040327,138.47,138.42,6.502]
[1767650347385,2.1886519,138.47,138.4,6.5029]
[1767650347579,0.31824863,138.46,138.4,6.5029]
[1767650355387,0.31824863,138.46,138.41,6.5026]
[1767650356493,0.31824863,138.46,138.42,0.04816592]
[1767650356986,1.92422221,138.45,138.4,6.5031]
[1767650368300,0.05381894,138.45,138.4,6.5031]
[1767650368501,2.1886519,138.48,138.41,0.05116254]
[1767650369006,2.1886519,138.48,138.39,101.1683]
[1767650369816,2.1886519,138.48,138.42,6.5022]
[1767650370007,2.1886519,138.48,138.42,6.5506347]
[1767650370895,0.33439601,138.47,138.42,6.5506347]
[1767650371098,1.87040327,138.46,138.42,6.5506347]
[1767650371299,1.87040327,138.46,138.42,0.0484347]
[1767650373112,2.20479928,138.46,138.42,0.0484347]
[1767650380112,0.33439601,138.45,138.42,0.0484347]
[1767650380318,0.33439601,138.45,138.4,6.503]
[1767650382016,0.048895,138.44,138.4,6.503]
[1767650388318,0.38329101,138.44,138.38,6.5036]
[1767650388713,0.33439601,138.44,138.38,6.5036]
[1767650390022,0.04709083,138.42,138.38,6.5036]
[1767650394517,0.04709083,138.42,138.39,6.5036]
[1767650399228,0.04709083,138.42,138.35,101.1938]
[1767650399424,0.04709083,138.42,138.35,186.5338]
[1767650400433,0.04709083,138.42,138.38,6.5041]
[1767650403723,0.36066588,138.42,138.38,6.5041]
[1767650404136,0.04709083,138.42,138.38,6.5041]
[1767650407733,0.31357505,138.48,138.39,0.05129016]
[1767650407935,0.31357505,138.48,138.39,85.39129016]
[1767650408240,0.31357505,138.48,138.39,85.34]
[1767650408742,6.81337505,138.48,138.41,6.5023]
[1767650409140,6.81337505,138.48,138.42,0.046165]
[1767650411245,0.31357505,138.48,138.42,6.548365]
[1767650414056,0.31357505,138.48,138.43,6.5017]
[1767650414938,0.31357505,138.48,138.44,6.5012]
[1767650415947,92.15197505,138.51,138.45,6.5007]
[1767650416644,92.15197505,138.51,138.47,0.04972094]
[1767650416955,0.04585201,138.49,138.43,6.5013]
[1767650417253,0.04585201,138.49,138.41,101.1499]
[1767650418651,0.04585201,138.49,138.44,6.5012]
[1767650419351,0.04585201,138.49,138.42,6.502]
[1767650419853,0.31357505,138.5,138.42,6.502]
[1767650420545,0.05329255,138.47,138.42,6.502]
[1767650424358,0.05329255,138.47,138.43,6.5016]
[1767650427260,0.05329255,138.47,138.44,6.5012]
[1767650428657,0.3668676,138.47,138.42,6.502]
[1767650439962,6.8668676,138.47,138.4,6.5029]
[1767650440365,6.8668676,138.47,138.39,85.32]
[1767650440866,6.8668676,138.47,138.4,6.5032]
[1767650441363,6.81357505,138.47,138.4,6.5032]
[1767650441864,0.05503755,138.45,138.4,6.5032]
[1767650447474,0.05503755,138.45,138.39,6.5032]
[1767650448771,1.87108708,138.44,138.38,6.5041]
[1767650448976,2.19027428,138.44,138.36,85.32]
[1767650449773,2.19027428,138.44,138.39,0.05515306]
[1767650449975,1.87108708,138.46,138.39,0.05515306]
[1767650450368,1.87108708,138.46,138.4,6.5027]
[1767650453983,1.87108708,138.46,138.39,0.05515306]
[1767650455582,1.87108708,138.46,138.42,6.5022]
[1767650456378,1.87108708,138.46,138.43,0.04768761]
[1767650456579,2.20704212,138.46,138.43,0.04768761]
[1767650456884,2.20704212,138.46,138.41,6.5027]
[1767650458489,0.33595504,138.45,138.41,6.5027]
[1767650461090,6.4989,138.5,138.4,103.03178708]
[1767650461291,6.4989,138.5,138.41,101.1534]
[1767650461292,1.87108708,138.49,138.41,101.1534]
[1767650461884,1.87108708,138.49,138.41,186.4934]
[1767650462183,1.87108708,138.51,138.42,1.87108708]
[1767650462584,2.19978216,138.51,138.42,1.87108708]
[1767650462785,8.69788216,138.51,138.42,8.37288708]
[1767650462985,8.69788216,138.51,138.45,0.04708784]
[1767650464990,2.19978216,138.49,138.45,0.04708784]
[1767650465297,2.19978216,138.49,138.4,1.87108708]
[1767650466298,8.69898216,138.49,138.42,6.5021]
[1767650467294,0.04579779,138.47,138.42,6.5021]
[1767650469297,0.04579779,138.47,138.43,0.05432639]
[1767650469496,0.04579779,138.47,138.43,6.55602639]
[1767650482206,0.04579779,138.47,138.43,0.05432639]
[1767650482508,2.19978216,138.51,138.43,0.05432639]
[1767650482907,2.19978216,138.51,138.42,1.87108708]
[1767650483704,8.69818216,138.51,138.45,0.05017267]
[1767650484911,6.82719508,138.5,138.45,0.05017267]
[1767650486308,0.32869508,138.5,138.45,0.05017267]
[1767650494509,0.32869508,138.5,138.45,6.55097267]
[1767650494710,8.687298,138.52,138.45,0.05017267]
[1767650495107,8.687298,138.52,138.43,1.87108708]
[1767650495312,2.189698,138.52,138.47,0.05136988]
[1767650497322,2.189698,138.52,138.47,6.55116988]
[1767650498019,2.189698,138.52,138.47,0.05136988]
[1767650499222,2.189698,138.52,138.47,6.55106988]
[1767650503324,2.189698,138.52,138.48,6.4994]
[1767650508535,0.31861092,138.52,138.48,6.4994]
[1767650512228,3.23956858,138.54,138.49,6.4987]
[1767650512428,3.23956858,138.54,138.47,0.05136988]
[1767650512628,3.23956858,138.54,138.46,101.1171]
[1767650512933,3.23956858,138.54,138.49,6.54777291]
[1767650522833,3.23956858,138.54,138.45,101.1216]
[1767650523142,0.33771282,138.51,138.43,101.1355]
[1767650523339,3.25867048,138.5,138.42,101.1434]
[1767650523541,0.33771282,138.49,138.4,85.3]
[1767650523733,3.25867048,138.46,138.37,101.1803]
[1767650523933,2.92095766,138.4,138.33,101.2106]
[1767650524138,2.92095766,138.38,138.32,33.59083303]
[1767650524344,2.92095766,138.42,138.33,101.2108]
[1767650524547,0.33771282,138.41,138.34,6.5056]
[1767650524748,2.92095766,138.4,138.34,6.55795995]
[1767650525145,0.05520151,138.39,138.34,6.55795995]
[1767650525654,0.05520151,138.39,138.35,6.5054]
[1767650526239,2.92095766,138.38,138.33,6.5062]
[1767650526448,3.25867048,138.38,138.29,102.49157086]
[1767650526648,3.25867048,138.38,138.29,1.25727086]
[1767650526943,2.92095766,138.36,138.29,1.25727086]
[1767650527136,3.25867048,138.38,138.29,1.25727086]
[1767650527348,0.33771282,138.37,138.29,1.25727086]
[1767650527550,0.33771282,138.37,138.3,6.5077]
[1767650527744,0.33771282,138.37,138.29,1.25727086]
[1767650527951,0.05153174,138.34,138.25,101.2651]
[1767650528343,0.33771282,138.35,138.25,102.52346196]
[1767650528848,0.33771282,138.37,138.28,101.2486]
[1767650530647,0.05024075,138.34,138.3,6.5077]
[1767650532751,0.05024075,138.34,138.31,0.05227728]
[1767650535954,0.33771282,138.39,138.31,102.71467728]
[1767650536152,0.33771282,138.39,138.31,101.27467728]
[1767650536754,0.33771282,138.39,138.33,6.5061]
[1767650537661,0.33771282,138.39,138.35,0.04707301]
[1767650538351,0.05056546,138.38,138.35,0.04707301]
[1767650542259,0.33771282,138.44,138.36,101.1834]
[1767650542454,0.33771282,138.47,138.39,101.1639]
[1767650542764,101.0666,138.53,138.35,186.62117301]
[1767650542765,0.33771282,138.44,138.36,101.1893]
[1767650542967,0.33771282,138.44,138.36,186.5693]
[1767650543660,0.33771282,138.44,138.39,6.55279125]
[1767650545953,3.25867048,138.47,138.39,0.04929125]
[1767650546864,0.33771282,138.47,138.39,0.04929125]
[1767650547666,3.25867048,138.47,138.41,6.5026]
[1767650548559,3.25867048,138.47,138.43,0.04704966]
[1767650549564,3.25867048,138.47,138.41,6.5026]
[1767650550858,3.25867048,138.47,138.43,0.05214931]
[1767650551060,0.33804004,138.44,138.35,101.1941]
[1767650551258,0.33804004,138.44,138.35,186.5541]
[1767650552063,0.33804004,138.46,138.37,101.1778]
[1767650553567,0.33804004,138.46,138.39,6.5033]
[1767650554761,3.2589977,138.45,138.39,6.5033]
[1767650554961,0.33804004,138.44,138.35,186.5541]
[1767650555863,0.33804004,138.44,138.38,6.5041]
[1767650556062,2.92095766,138.43,138.35,85.36]
[1767650556263,0.33804004,138.44,138.35,186.5541]
[1767650557264,0.33804004,138.47,138.42,6.5021]
[1767650557470,0.33804004,138.49,138.39,186.5053]
[1767650558657,0.33804004,138.49,138.43,6.5017]
[1767650559865,0.33804004,138.48,138.43,6.5017]
[1767650560065,3.2589977,138.48,138.43,6.5017]
[1767650562168,0.33804004,138.48,138.43,6.5017]
[1767650565374,0.33804004,138.48,138.41,6.5027]
[1767650568676,2.20882221,138.48,138.41,6.5027]
[1767650570371,8.70832221,138.48,138.41,6.5027]
[1767650570779,1.87078217,138.48,138.42,6.5021]
[1767650570984,6.4989,138.5,138.39,103.03508217]
[1767650570985,8.36968217,138.5,138.39,103.03508217]
[1767650571175,8.36968217,138.5,138.41,1.87078217]
[1767650571375,8.70772221,138.5,138.42,6.5022]
[1767650575281,0.3381525,138.53,138.42,101.1446]
[1767650575484,0.3381525,138.53,138.43,1.87078217]
[1767650575485,2.20893467,138.53,138.43,1.87078217]
[1767650575783,1.87078217,138.49,138.4,186.5005]
[1767650576085,1.91871079,138.49,138.4,188.37128217]
[1767650576272,1.91871079,138.49,138.36,21.68]
[1767650576273,0.3381525,138.48,138.36,101.1859]
[1767650576579,1.87078217,138.43,138.34,101.2017]
[1767650577472,1.87078217,138.43,138.37,0.05122093]
[1767650577675,1.87078217,138.43,138.37,6.55572093]
[1767650578068,1.87078217,138.41,138.37,0.05122093]
[1767650580686,1.87078217,138.39,138.37,0.05122093]
[1767650580887,1.87078217,138.39,138.34,6.5059]
[1767650581278,0.30701869,138.43,138.33,101.2081]
[1767650581476,1.87078217,138.45,138.36,1.87078217]
[1767650581888,1.87078217,138.45,138.39,6.5034]
[1767650582388,0.04959291,138.42,138.39,6.5034]
[1767650582687,0.04959291,138.42,138.37,6.5042]
[1767650584888,0.04959291,138.42,138.38,6.5039]
[1767650587186,0.04959291,138.42,138.35,101.1963]
[1767650587396,0.30701869,138.48,138.39,0.04799969]
[1767650587691,2.17780086,138.48,138.4,1.87078217]
[1767650588080,2.17780086,138.48,138.42,6.5021]
[1767650588683,2.17780086,138.48,138.44,0.05250088]
[1767650591287,2.17780086,138.48,138.38,101.1705]
[1767650591489,0.05363224,138.47,138.38,103.04128217]
[1767650591884,85.34,138.5,138.4,103.02848217]
[1767650592082,1.87078217,138.5,138.41,101.1527]
[1767650592286,2.17780086,138.48,138.38,101.1705]
[1767650592588,2.17780086,138.47,138.41,6.5026]
[1767650595195,0.04687205,138.45,138.41,6.5026]
[1767650595696,2.17780086,138.49,138.4,1.87078217]
[1767650595993,0.30701869,138.49,138.42,0.05085299]
[1767650597399,87.21078217,138.5,138.44,6.5012]
[1767650598194,87.21078217,138.5,138.46,0.04549856]
[1767650600497,87.51780086,138.5,138.46,0.04549856]
[1767650600998,87.51780086,138.5,138.44,6.5012]
[1767650603006,85.64701869,138.5,138.44,6.5012]
[1767650603198,87.51780086,138.5,138.44,6.5012]
[1767650603499,2.17780086,138.48,138.42,6.5019]
[1767650604297,1.87078217,138.46,138.42,6.5019]
[1767650607702,0.04594162,138.45,138.42,6.5019]
[1767650611807,2.18229613,138.44,138.33,1.87078217]
[1767650612004,1.87078217,138.42,138.33,85.32]
[1767650612205,1.87078217,138.42,138.33,186.5288]
[1767650613311,0.31151396,138.43,138.33,186.5288]
[1767650613510,1.87078217,138.4,138.33,186.5288]
[1767650613697,1.87078217,138.4,138.36,6.5049]
[1767650620918,8.217e-05,138.4,138.37,6.5045]
[1767650621119,1.87078217,138.42,138.37,6.5045]
[1767650622216,2.18229613,138.42,138.35,6.5051]
[1767650623016,2.18229613,138.42,138.36,6.505]